bitfinex-derivatives/quotes_BTCF0:USTF0_20210708
["timestamp","ask_amount","ask_price","bid_price","bid_amount"]
[1625733428343,0.24057544,32267.0,32264.0,0.24057544]
[1625733428487,0.24057544,32267.0,32265.0,0.0938]
[1625733428650,0.24057544,32267.0,32265.0,0.09745324]
[1625733428793,0.24057544,32267.0,32265.0,0.10792224]
[1625733428943,0.24057544,32267.0,32266.0,0.00365301]
[1625733429236,0.24057544,32267.0,32266.0,0.10365301]
[1625733429369,0.24057544,32267.0,32266.0,0.56732501]
[1625733430114,0.21247544,32267.0,32266.0,0.56732501]
[1625733430254,0.21247544,32267.0,32266.0,0.80790045]
[1625733431005,0.21247544,32267.0,32266.0,0.81703212]
[1625733431006,0.18117544,32267.0,32266.0,0.81703212]
[1625733431155,0.16817544,32267.0,32266.0,0.81703212]
[1625733431906,0.16817544,32267.0,32266.0,0.80790045]
[1625733432357,0.48115088,32270.0,32266.0,0.80790045]
[1625733432657,0.48115088,32270.0,32267.0,0.01278476]
[1625733432959,0.48115088,32270.0,32268.0,0.465802]
[1625733433107,0.48115088,32270.0,32269.0,0.1]
[1625733433258,0.9357,32274.0,32269.0,0.1]
[1625733433448,0.9357,32274.0,32269.0,0.11278434]
[1625733433577,0.9357,32274.0,32269.0,0.56994934]
[1625733433724,0.9357,32274.0,32270.0,0.01278469]
[1625733434176,0.9357,32274.0,32271.0,0.46625]
[1625733434317,0.9357,32274.0,32273.0,0.48115088]
[1625733434779,0.24057544,32277.0,32273.0,1.05272691]
[1625733435070,0.24057544,32277.0,32274.0,0.00365252]
[1625733435512,0.24057544,32277.0,32276.0,0.1]
[1625733435884,0.24057544,32277.0,32276.0,0.56877161]
[1625733436337,0.24057544,32281.0,32276.0,0.80934705]
[1625733436638,0.24057544,32281.0,32277.0,0.00365241]
[1625733436938,0.24057544,32281.0,32278.0,0.46467]
[1625733437090,0.24057544,32281.0,32280.0,0.1]
[1625733437389,0.24057544,32281.0,32280.0,0.564124]
[1625733437542,0.24057544,32281.0,32280.0,0.56777632]
[1625733437991,0.24057544,32281.0,32280.0,0.80580632]
[1625733438324,0.24057544,32284.0,32280.0,1.2869572]
[1625733438626,1.20358135,32292.0,32280.0,1.1869572]
[1625733438787,0.5788,32292.0,32281.0,0.5]
[1625733438905,0.59789499,32294.0,32281.0,0.5127807]
[1625733439046,0.59889065,32300.0,32291.0,0.1]
[1625733439218,0.08573518,32302.0,32291.0,0.44821]
[1625733439342,0.08573518,32302.0,32292.0,0.00365107]
[1625733439491,0.25702382,32302.0,32292.0,0.00628707]
[1625733439642,0.59957493,32303.0,32292.0,0.00628707]
[1625733439792,0.59957493,32303.0,32301.0,0.1]
[1625733439943,0.0857764,32302.0,32301.0,0.1]
[1625733440241,0.0857764,32302.0,32301.0,0.461382]
[1625733440392,0.48115088,32302.0,32301.0,0.7056082]
[1625733440844,0.48115088,32302.0,32301.0,0.2442262]
[1625733441000,0.56692553,32302.0,32301.0,0.8054292]
[1625733441158,0.56692553,32302.0,32301.0,0.56485376]
[1625733441293,1.08080443,32302.0,32301.0,0.56485376]
[1625733441443,0.98646556,32302.0,32301.0,0.56485376]
[1625733441742,1.32916984,32302.0,32301.0,0.56485376]
[1625733442201,0.98646556,32302.0,32301.0,0.56485376]
[1625733442345,1.928075,32302.0,32301.0,0.56485376]
[1625733442943,1.24310853,32302.0,32301.0,0.56485376]
[1625733443694,1.92777859,32302.0,32301.0,0.56485376]
[1625733444144,1.58552101,32302.0,32301.0,0.56485376]
[1625733444670,1.24310853,32302.0,32301.0,0.56485376]
[1625733445271,1.24310853,32302.0,32301.0,0.561203]
[1625733445419,1.92777939,32302.0,32301.0,0.561203]
[1625733446547,1.24310853,32302.0,32301.0,0.561203]
[1625733447296,1.5861598,32302.0,32301.0,0.561203]
[1625733447602,1.92966139,32302.0,32301.0,0.561203]
[1625733447899,0.81536519,32302.0,32301.0,0.561203]
[1625733448050,0.98722301,32302.0,32301.0,0.561203]
[1625733448575,1.33071706,32302.0,32301.0,0.561203]
[1625733448954,1.24469275,32302.0,32301.0,0.561203]
[1625733449402,1.33074393,32302.0,32301.0,0.561203]
[1625733449701,0.81539206,32302.0,32301.0,0.561203]
[1625733449851,0.56720206,32302.0,32301.0,0.561203]
[1625733451578,1.08307129,32302.0,32301.0,0.561203]
[1625733452104,0.56720206,32302.0,32301.0,0.561203]
[1625733452254,0.32662662,32302.0,32301.0,0.561203]
[1625733452405,0.08605118,32302.0,32301.0,1.04235388]
[1625733452556,0.08605118,32302.0,32301.0,1.04600417]
[1625733452706,0.60306489,32308.0,32301.0,1.04600417]
[1625733453006,0.32686168,32309.0,32301.0,0.94600417]
[1625733453166,0.24057544,32309.0,32301.0,0.94600417]
[1625733453455,0.24057544,32309.0,32302.0,0.00365001]
[1625733453607,0.24057544,32309.0,32308.0,0.1]
[1625733453980,0.24057544,32309.0,32308.0,0.36194]
[1625733454431,0.24057544,32309.0,32308.0,0.84309088]
[1625733455713,0.24057544,32309.0,32308.0,0.58705088]
[1625733456010,0.24057544,32309.0,32308.0,0.48705088]
[1625733456162,1.45169354,32309.0,32308.0,0.48705088]
[1625733457065,3.70088671,32309.0,32301.0,0.48115088]
[1625733457287,0.25982562,32303.0,32301.0,0.48115088]
[1625733457436,0.25970066,32302.0,32290.0,0.057]
[1625733457586,0.25970066,32302.0,32282.0,0.5]
[1625733457738,0.60557746,32301.0,32291.0,0.46948903]
[1625733458039,0.25965961,32300.0,32292.0,0.00365108]
[1625733458189,0.60547316,32301.0,32292.0,0.00365108]
[1625733458339,0.60547316,32301.0,32292.0,0.464214]
[1625733458488,0.24057544,32296.0,32295.0,0.24057544]
[1625733458639,0.48585544,32296.0,32295.0,0.24057544]
[1625733458790,0.24528,32296.0,32295.0,0.24304244]
[1625733458939,0.24528,32296.0,32295.0,0.34669331]
[1625733459991,0.24057544,32299.0,32295.0,0.34669331]
[1625733460291,0.24057544,32299.0,32295.0,0.24669331]
[1625733460441,0.24057544,32299.0,32298.0,0.24057544]
[1625733460591,0.24057544,32299.0,32298.0,0.34057544]
[1625733460744,0.24057544,32299.0,32298.0,0.80662476]
[1625733462468,0.48115088,32299.0,32298.0,0.80662476]
[1625733463376,0.24057544,32299.0,32298.0,0.80662476]
[1625733466072,0.46778544,32299.0,32298.0,0.80662476]
[1625733470053,0.24057544,32302.0,32298.0,0.81575122]
[1625733470429,0.24057544,32302.0,32301.0,0.24057544]
[1625733470578,0.24057544,32302.0,32301.0,0.54415544]
[1625733470729,0.24057544,32302.0,32301.0,1.01914105]
[1625733471028,0.24057544,32302.0,32301.0,1.11914105]
[1625733472688,0.24057544,32306.0,32301.0,1.11914105]
[1625733472980,0.24057544,32306.0,32301.0,1.01914105]
[1625733473282,0.24057544,32306.0,32302.0,0.00365041]
[1625733473430,0.24057544,32306.0,32305.0,0.1]
[1625733473731,0.24057544,32306.0,32305.0,0.11491241]
[1625733474481,0.24057544,32306.0,32305.0,0.35548785]
[1625733478458,0.24057544,32306.0,32305.0,0.59606329]
[1625733482517,0.24057544,32306.0,32305.0,9.08158899]
[1625733482666,0.24762,32311.0,32305.0,9.08158899]
[1625733482667,1.22757544,32312.0,32305.0,11.2485839]
[1625733482817,0.24057544,32312.0,32305.0,9.08158899]
[1625733482968,0.24057544,32312.0,32306.0,0.00365011]
[1625733483117,0.24057544,32312.0,32311.0,6.68149356]
[1625733483492,0.24057544,32312.0,32311.0,7.13287667]
[1625733484091,0.24057544,32312.0,32311.0,7.23287667]
[1625733484243,0.24057544,32312.0,32311.0,9.03855417]
[1625733484618,0.24057544,32312.0,32311.0,9.27912961]
[1625733485744,0.9016,32313.0,32311.0,9.52760961]
[1625733486052,0.9016,32313.0,32312.0,8.49324792]
[1625733486344,0.24057544,32315.0,32312.0,8.49324792]
[1625733486495,0.24057544,32315.0,32314.0,0.48115088]
[1625733486795,0.24057544,32315.0,32314.0,11.15212984]
[1625733486946,0.24057544,32315.0,32314.0,11.61140484]
[1625733487096,0.23237544,32315.0,32314.0,11.61140484]
[1625733487548,0.23237544,32315.0,32314.0,11.71140484]
[1625733488148,0.23237544,32315.0,32314.0,11.72052771]
[1625733488299,0.23237544,32315.0,32314.0,11.56563778]
[1625733488457,0.23237544,32315.0,32314.0,11.19248302]
[1625733488642,0.23237544,32315.0,32314.0,9.02285657]
[1625733489952,0.23237544,32315.0,32314.0,0.56292392]
[1625733491603,0.50214037,32319.0,32314.0,0.56292392]
[1625733491753,0.26156493,32319.0,32314.0,0.56292392]
[1625733491904,0.93732728,32321.0,32314.0,0.56292392]
[1625733491905,0.85097319,32321.0,32317.0,4.8729]
[1625733492059,0.85097319,32321.0,32317.0,5.22326]
[1625733492209,0.16947544,32321.0,32317.0,5.22326]
[1625733492358,0.16947544,32321.0,32318.0,0.4699109]
[1625733492586,0.16947544,32321.0,32320.0,0.48115088]
[1625733492735,0.16947544,32321.0,32320.0,0.58115088]
[1625733492886,0.16947544,32321.0,32320.0,1.04645288]
[1625733493035,0.16947544,32321.0,32320.0,1.05010169]
[1625733493698,0.52347843,32323.0,32320.0,1.05010169]
[1625733493959,1.2209782,32324.0,32320.0,1.05010169]
[1625733493960,0.17473981,32324.0,32320.0,1.05010169]
[1625733494094,1.04788372,32325.0,32320.0,0.95010169]
[1625733494236,1.04788372,32325.0,32321.0,0.00364855]
[1625733494415,0.69843556,32326.0,32321.0,0.00364855]
[1625733494416,0.34905401,32326.0,32323.0,0.1]
[1625733494564,0.34905401,32326.0,32325.0,0.24057544]
[1625733494930,0.52367699,32326.0,32325.0,0.24057544]
[1625733494999,2.26808771,32326.0,32325.0,0.70856512]
[1625733495167,2.26808771,32326.0,32325.0,0.80856512]
[1625733495313,3.66252275,32326.0,32325.0,0.80491644]
[1625733496412,2.26808771,32326.0,32325.0,0.80491644]
[1625733496562,3.66425244,32326.0,32325.0,0.80491644]
[1625733497691,2.26808771,32326.0,32325.0,0.80491644]
[1625733498062,2.26808771,32326.0,32325.0,0.8085653]
[1625733498514,3.66759697,32326.0,32325.0,0.8085653]
[1625733499265,3.66759697,32326.0,32325.0,0.9026653]
[1625733499588,2.22178771,32326.0,32325.0,1.1618153]
[1625733501142,1.17517616,32326.0,32325.0,1.1618153]
[1625733501445,2.22511463,32326.0,32325.0,1.1618153]
[1625733501896,2.22511463,32326.0,32325.0,0.9026653]
[1625733502044,2.48135463,32326.0,32325.0,0.8085653]
[1625733507620,3.87297861,32326.0,32325.0,0.8085653]
[1625733508350,2.48135463,32326.0,32325.0,0.8085653]
[1625733508500,3.44313579,32326.0,32325.0,0.8085653]
[1625733509927,3.44313579,32326.0,32325.0,0.9020653]
[1625733513487,3.75335579,32326.0,32325.0,0.8085653]
[1625733513785,3.75335579,32326.0,32320.0,0.48115088]
[1625733513918,5.14524902,32326.0,32325.0,0.465323]
[1625733514215,5.14524902,32326.0,32321.0,0.46999707]
[1625733514357,2.95543848,32322.0,32321.0,0.46999707]
[1625733514507,2.95543848,32322.0,32320.0,0.48115088]
[1625733514657,1.73853412,32322.0,32320.0,0.48115088]
[1625733514808,0.24057544,32321.0,32320.0,0.48115088]
[1625733514959,0.93650203,32321.0,32320.0,0.48115088]
[1625733515108,3.19757713,32321.0,32320.0,0.94286988]
[1625733515257,3.19757713,32321.0,32320.0,0.94651926]
[1625733515407,1.98008853,32321.0,32320.0,0.94651926]
[1625733516538,3.19777999,32321.0,32320.0,0.94651926]
[1625733516984,4.58930705,32321.0,32320.0,0.94651926]
[1625733518264,4.58930705,32321.0,32320.0,0.91098826]
[1625733520216,4.58930705,32321.0,32320.0,1.01098826]
[1625733522170,4.58930705,32321.0,32320.0,5.11228826]
[1625733523903,3.19777999,32321.0,32320.0,5.11228826]
[1625733524049,0.93650203,32321.0,32320.0,5.11228826]
[1625733524276,0.24057544,32321.0,32320.0,5.12140946]
[1625733524726,0.34989485,32322.0,32320.0,5.12140946]
[1625733525029,0.07492366,32323.0,32320.0,5.12140946]
[1625733525180,0.70037748,32326.0,32321.0,0.01276841]
[1625733525478,0.70037748,32326.0,32322.0,0.566533]
[1625733525628,0.70037748,32326.0,32323.0,0.093]
[1625733525930,0.94113318,32327.0,32324.0,0.47242738]
[1625733526229,0.70043629,32326.0,32324.0,0.47242738]
[1625733526378,0.70043629,32326.0,32325.0,0.00364792]
[1625733526679,0.70043629,32326.0,32325.0,0.56880692]
[1625733526829,1.75091414,32326.0,32325.0,0.80938236]
[1625733527730,2.97552081,32326.0,32325.0,0.80938236]
[1625733528033,4.37477743,32326.0,32325.0,0.80938236]
[1625733528705,5.94863744,32326.0,32325.0,0.80938236]
[1625733529456,5.94863744,32326.0,32325.0,0.80573444]
[1625733529608,5.94863744,32326.0,32325.0,0.80938331]
[1625733529909,5.94863744,32326.0,32325.0,0.80938333]
[1625733530058,5.94863744,32326.0,32325.0,0.80938338]
[1625733530361,4.37477743,32326.0,32325.0,0.80938338]
[1625733530885,5.9516685,32326.0,32325.0,0.80938338]
[1625733531260,5.9516685,32326.0,32325.0,0.56880794]
[1625733532162,6.2742885,32326.0,32325.0,0.56880794]
[1625733534939,5.9516685,32326.0,32325.0,0.56880794]
[1625733538018,4.37477743,32326.0,32325.0,0.56880794]
[1625733538543,4.37477743,32326.0,32325.0,0.88900794]
[1625733538843,4.36907743,32326.0,32325.0,1.12958338]
[1625733538994,2.96982081,32326.0,32325.0,1.12958338]
[1625733539294,2.96982081,32326.0,32325.0,1.13870314]
[1625733539446,1.74521414,32326.0,32325.0,1.13870314]
[1625733540120,2.97361014,32326.0,32325.0,1.13870314]
[1625733540422,2.97361014,32326.0,32325.0,1.12958338]
[1625733541621,2.97361014,32326.0,32325.0,0.80938338]
[1625733542224,4.37868842,32326.0,32325.0,0.80938338]
[1625733542750,2.97361014,32326.0,32325.0,0.80938338]
[1625733542898,4.37969155,32326.0,32325.0,0.80938338]
[1625733543802,2.97361014,32326.0,32325.0,0.80938338]
[1625733544478,4.38055265,32326.0,32325.0,0.80938338]
[1625733545604,2.97361014,32326.0,32325.0,0.80938338]
[1625733545755,4.38135372,32326.0,32325.0,0.80938338]
[1625733553715,4.38135372,32326.0,32325.0,0.81850361]
[1625733554240,4.38135372,32326.0,32325.0,0.80938338]
[1625733559053,4.38135372,32326.0,32325.0,0.81850333]
[1625733561526,2.97361014,32326.0,32325.0,0.81850333]
[1625733563105,4.39239679,32326.0,32325.0,0.81850333]
[1625733563402,4.39239679,32326.0,32325.0,0.80938338]
[1625733563854,5.98718451,32326.0,32325.0,0.80938338]
[1625733564003,5.98718451,32326.0,32325.0,0.90308338]
[1625733564603,5.98718451,32326.0,32325.0,0.80938338]
[1625733566179,5.98718451,32326.0,32325.0,0.24057544]
[1625733566333,5.98718451,32326.0,32318.0,0.0933]
[1625733566630,3.71394624,32319.0,32308.0,0.07524517]
[1625733566780,4.04299624,32319.0,32308.0,0.07524517]
[1625733566931,2.29890457,32317.0,32308.0,0.01824517]
[1625733567081,0.24057544,32313.0,32312.0,0.24057544]
[1625733567231,0.24057544,32313.0,32309.0,0.466323]
[1625733567381,0.24057544,32313.0,32312.0,0.004064]
[1625733567382,2.53718049,32313.0,32312.0,0.004064]
[1625733567596,0.24057544,32313.0,32312.0,0.004064]
[1625733567691,0.24057544,32313.0,32310.0,0.47778128]
[1625733567832,0.24057544,32313.0,32312.0,0.00364967]
[1625733567833,10.83233826,32313.0,32312.0,0.00364967]
[1625733567980,10.83233826,32313.0,32312.0,0.00760567]
[1625733568153,10.83233826,32313.0,32312.0,0.003956]
[1625733568297,10.83233826,32313.0,32308.0,0.24057544]
[1625733568430,3.70237035,32309.0,32305.0,0.24057544]
[1625733568582,3.95500035,32309.0,32305.0,0.24057544]
[1625733568731,2.29213555,32306.0,32305.0,0.24057544]
[1625733569032,2.77328643,32306.0,32305.0,0.70608644]
[1625733569183,2.77328643,32306.0,32305.0,0.7097365]
[1625733569636,2.77328643,32306.0,32297.0,0.057]
[1625733569784,1.05632591,32303.0,32268.0,1.0]
[1625733569935,1.05632591,32303.0,32298.0,0.01277718]
[1625733570085,0.48115088,32306.0,32298.0,0.01277718]
[1625733570086,1.05548332,32301.0,32298.0,0.01277718]
[1625733570238,2.28495372,32299.0,32280.0,0.01825536]
[1625733570535,4.9163,32292.0,32291.0,0.00365141]
[1625733570985,5.87860176,32292.0,32291.0,0.46971641]
[1625733571586,5.87860176,32292.0,32277.0,0.29757544]
[1625733571886,5.87860176,32292.0,32291.0,0.463126]
[1625733572036,5.87860176,32292.0,32288.0,0.459246]
[1625733572186,5.87860176,32292.0,32279.0,0.006356]
[1625733572338,5.87860176,32292.0,32291.0,0.460366]
[1625733572636,5.87860176,32292.0,32291.0,0.00365183]
[1625733572786,5.87860176,32292.0,32291.0,0.10365183]
[1625733572935,5.87860176,32292.0,32291.0,0.465313]
[1625733573237,5.87860176,32292.0,32291.0,0.00365194]
[1625733573537,5.87860176,32292.0,32291.0,0.47069394]
[1625733574214,5.87860176,32292.0,32280.0,0.0921]
[1625733574363,6.10617176,32292.0,32280.0,0.0921]
[1625733574516,6.10617176,32292.0,32291.0,0.45428]
[1625733574815,6.10617176,32292.0,32281.0,0.52492983]
[1625733574965,6.10617176,32292.0,32291.0,0.0036519]
[1625733575115,6.10617176,32292.0,32291.0,0.464602]
[1625733575415,6.10617176,32292.0,32291.0,0.00365173]
[1625733575715,6.10617176,32292.0,32291.0,0.46640873]
[1625733575867,0.96230176,32292.0,32291.0,0.46640873]
[1625733576019,0.96230176,32292.0,32291.0,0.462757]
[1625733576166,0.96230176,32292.0,32291.0,0.46640833]
[1625733576316,0.96230176,32292.0,32291.0,0.00365133]
[1625733576618,0.96230176,32292.0,32291.0,0.46940133]
[1625733576769,0.96230176,32292.0,32291.0,0.46575]
[1625733577068,0.96230176,32292.0,32291.0,0.0036513]
[1625733577369,0.96230176,32292.0,32291.0,0.4603223]
[1625733577821,1.05025668,32304.0,32291.0,0.7728723]
[1625733577971,0.9938,32305.0,32291.0,0.7728723]
[1625733578122,0.9938,32305.0,32292.0,0.01277779]
[1625733578273,0.7993,32305.0,32293.0,0.00912742]
[1625733578420,0.3097,32305.0,32301.0,3.92]
[1625733578575,1.05336473,32314.0,32301.0,4.24246]
[1625733578872,1.05348026,32315.0,32302.0,0.4593008]
[1625733579170,0.48115088,32303.0,32302.0,0.455651]
[1625733579469,0.48115088,32303.0,32302.0,0.4593006]
[1625733580523,0.48115088,32303.0,32302.0,0.5593006]
[1625733581276,0.33915088,32303.0,32302.0,0.5593006]
[1625733581432,0.33565088,32303.0,32302.0,0.5593006]
[1625733581577,0.32865088,32303.0,32302.0,0.5593006]
[1625733581951,0.32515088,32303.0,32302.0,0.5593006]
[1625733583154,0.08457544,32303.0,32302.0,0.79987604]
[1625733583602,0.05057544,32303.0,32302.0,0.79622644]
[1625733583760,0.05057544,32303.0,32302.0,0.79987593]
[1625733583901,0.04767544,32303.0,32302.0,0.79987596]
[1625733584202,0.04447544,32303.0,32302.0,0.79987596]
[1625733584502,0.04147544,32303.0,32302.0,0.79987596]
[1625733586382,0.29924544,32303.0,32302.0,0.79987596]
[1625733586532,0.29924544,32303.0,32302.0,0.55930052]
[1625733589082,0.04147544,32303.0,32302.0,0.55930052]
[1625733593290,0.24057544,32305.0,32302.0,0.55930052]
[1625733593740,0.48115088,32305.0,32303.0,0.0036499]
[1625733594039,0.48115088,32305.0,32304.0,0.46133]
[1625733594338,0.48115088,32305.0,32304.0,0.56497962]
[1625733594489,0.48115088,32305.0,32304.0,0.10364962]
[1625733594639,0.48115088,32305.0,32304.0,0.11277325]
[1625733594790,0.48115088,32305.0,32304.0,0.57111125]
[1625733595314,0.24057544,32308.0,32304.0,0.57111125]
[1625733595765,0.24057544,32308.0,32305.0,0.01277117]
[1625733596064,0.24057544,32313.0,32307.0,0.1]
[1625733596216,0.24057544,32313.0,32307.0,0.41241]
[1625733596377,0.24057544,32313.0,32308.0,0.4740631]
[1625733596818,0.24057544,32313.0,32312.0,0.1]
[1625733597117,0.24057544,32313.0,32312.0,0.56312542]
[1625733597266,0.24057544,32313.0,32312.0,0.57224645]
[1625733597416,0.24057544,32313.0,32312.0,0.56312542]
[1625733597866,0.52671554,32324.0,32312.0,0.56312542]
[1625733598016,0.52671554,32324.0,32312.0,0.57224608]
[1625733598171,0.52671554,32324.0,32312.0,0.47224608]
[1625733598318,0.24057544,32321.0,32313.0,0.01276849]
[1625733598466,0.24057544,32321.0,32313.0,0.00364814]
[1625733598617,0.24057544,32321.0,32314.0,0.46222]
[1625733598919,0.24057544,32321.0,32320.0,5.4348]
[1625733599069,0.24057544,32321.0,32320.0,5.5348]
[1625733599220,0.24057544,32321.0,32320.0,5.993295]
[1625733599374,0.24057544,32321.0,32320.0,5.99694309]
[1625733600272,1.23004371,32326.0,32320.0,5.99694309]
[1625733600497,0.52717487,32326.0,32320.0,5.99694309]
[1625733600646,0.52717487,32326.0,32321.0,0.00364809]
[1625733600797,1.22967152,32326.0,32325.0,0.24057544]
[1625733600947,1.22967152,32326.0,32325.0,0.34057544]
[1625733601097,1.22967152,32326.0,32325.0,0.34868544]
[1625733601247,1.22967152,32326.0,32325.0,0.35233353]
[1625733601546,0.52717487,32326.0,32325.0,0.35233353]
[1625733602000,1.22743203,32326.0,32325.0,0.35233353]
[1625733602898,2.27603926,32326.0,32325.0,0.11175809]
[1625733603048,3.49823359,32326.0,32320.0,5.4348]
[1625733603348,1.22219433,32326.0,32325.0,0.46166]
[1625733603499,1.22219433,32326.0,32324.0,0.24057544]
[1625733603650,3.48960543,32326.0,32321.0,0.00364862]
[1625733603799,1.39626369,32327.0,32325.0,0.46995965]
[1625733603949,1.39626369,32327.0,32325.0,0.466311]
[1625733604099,3.48853829,32326.0,32322.0,0.45917568]
[1625733604251,2.26768855,32323.0,32321.0,0.001731]
[1625733604400,2.26768855,32323.0,32320.0,5.67537544]
[1625733604554,1.22120053,32322.0,32320.0,5.67537544]
[1625733604701,1.22120053,32322.0,32321.0,0.4625]
[1625733604702,1.04628832,32322.0,32321.0,0.4625]
[1625733604851,1.04628832,32322.0,32321.0,0.00364887]
[1625733605004,2.26652808,32322.0,32321.0,0.00364887]
[1625733605152,4.87938234,32322.0,32321.0,0.00841787]
[1625733605303,10.11193322,32322.0,32321.0,0.004769]
[1625733605606,10.11193322,32322.0,32321.0,0.00364932]
[1625733605902,10.11193322,32322.0,32321.0,0.00747032]
[1625733606202,10.11193322,32322.0,32314.0,0.33297544]
[1625733606351,10.11193322,32322.0,32314.0,0.24057544]
[1625733606502,1.2202891,32315.0,32314.0,0.24057544]
[1625733606651,1.2202891,32315.0,32309.0,0.24057544]
[1625733606803,2.2660124,32315.0,32314.0,0.459542]
[1625733607104,2.2660124,32315.0,32310.0,0.00891084]
[1625733607251,2.2660124,32315.0,32314.0,0.00364984]
[1625733607407,2.2660124,32315.0,32314.0,0.46577184]
[1625733607553,2.2660124,32315.0,32314.0,0.462122]
[1625733607702,2.2660124,32315.0,32311.0,0.00364986]
[1625733607853,2.6032624,32315.0,32314.0,0.00364986]
[1625733608004,0.33725,32315.0,32314.0,0.457957]
[1625733608152,2.60381818,32315.0,32314.0,0.457957]
[1625733608303,2.60381818,32315.0,32314.0,0.00364994]
[1625733608608,3.82433008,32315.0,32314.0,0.461641]
[1625733608905,3.82433008,32315.0,32314.0,0.0036499]
[1625733609204,3.82433008,32315.0,32314.0,0.4616549]
[1625733609356,3.82433008,32315.0,32314.0,5.49e-05]
[1625733609512,5.21764948,32315.0,32304.0,0.29757544]
[1625733609667,5.21764948,32315.0,32298.0,0.057]
[1625733609805,0.52226846,32309.0,32305.0,0.00365012]
[1625733609956,0.24057544,32306.0,32305.0,0.00365012]
[1625733610106,0.53519544,32306.0,32301.0,0.01277611]
[1625733610257,0.53519544,32306.0,32305.0,0.457156]
[1625733610407,0.53519544,32306.0,32305.0,0.46080636]
[1625733610557,0.53519544,32306.0,32305.0,0.00365036]
[1625733610857,0.53519544,32306.0,32305.0,0.460431]
[1625733611157,0.53519544,32306.0,32305.0,0.00365049]
[1625733611610,0.53519544,32306.0,32305.0,0.46603849]
[1625733611909,1.25692176,32306.0,32305.0,0.46603849]
[1625733612058,1.77917414,32306.0,32305.0,0.46603849]
[1625733612809,1.25692176,32306.0,32305.0,0.46603849]
[1625733613035,1.77957886,32306.0,32305.0,0.46603849]
[1625733613562,1.25692176,32306.0,32305.0,0.46603849]
[1625733613712,0.96230176,32306.0,32305.0,0.46603849]
[1625733613862,1.22087521,32308.0,32305.0,0.46603849]
[1625733614014,0.52371783,32310.0,32305.0,0.46603849]
[1625733614312,0.52371783,32310.0,32306.0,0.00365011]
[1625733614462,0.72172632,32307.0,32306.0,0.00365011]
[1625733614912,0.72172632,32307.0,32306.0,0.001319]
[1625733615213,0.72172632,32307.0,32306.0,0.10496899]
[1625733615363,0.72172632,32307.0,32306.0,0.10364999]
[1625733615513,0.72172632,32307.0,32306.0,0.56314599]
[1625733616419,1.22176551,32311.0,32306.0,0.56314599]
[1625733616564,0.52363872,32311.0,32306.0,0.56314599]
[1625733616716,0.52363872,32311.0,32307.0,0.00364999]
[1625733616866,0.72172632,32308.0,32307.0,0.00364999]
[1625733617166,0.72172632,32308.0,32307.0,0.10364999]
[1625733617318,0.72172632,32308.0,32307.0,0.103446]
[1625733617616,0.72172632,32308.0,32307.0,0.11621891]
[1625733617916,0.72172632,32308.0,32307.0,0.1070954]
[1625733618365,0.72172632,32308.0,32307.0,0.11621875]
[1625733618517,0.48115088,32308.0,32307.0,0.11621875]
[1625733618967,0.52436784,32314.0,32307.0,0.1070954]
[1625733619116,1.22361552,32314.0,32307.0,0.1070954]
[1625733619416,0.24057544,32312.0,32311.0,0.24057544]
[1625733619716,0.24057544,32312.0,32311.0,0.24422494]
[1625733619869,0.24057544,32312.0,32311.0,0.80122894]
[1625733621518,0.52520565,32313.0,32311.0,0.5606535]
[1625733621667,1.224876,32314.0,32311.0,0.557004]
[1625733621818,1.224876,32314.0,32312.0,0.00364948]
[1625733621968,0.72172632,32313.0,32312.0,0.00364948]
[1625733622118,1.24694974,32313.0,32312.0,0.00364948]
[1625733622272,1.94692805,32313.0,32312.0,0.00580048]
[1625733622421,1.94692805,32313.0,32312.0,0.002151]
[1625733622719,1.94692805,32313.0,32312.0,0.00580063]
[1625733622869,1.94692805,32313.0,32312.0,0.10364963]
[1625733623019,0.72172632,32313.0,32312.0,0.10429763]
[1625733623997,0.52538038,32314.0,32312.0,0.10429763]
[1625733624444,0.52538038,32314.0,32313.0,0.00364936]
[1625733624747,0.52538038,32314.0,32313.0,0.79550636]
[1625733624896,0.52538038,32314.0,32313.0,0.89550636]
[1625733625051,0.52558548,32317.0,32313.0,0.89550636]
[1625733625196,1.29157127,32319.0,32313.0,0.89550636]
[1625733625197,0.76669932,32319.0,32313.0,0.89550636]
[1625733625500,0.76669932,32319.0,32314.0,0.00364864]
[1625733625649,0.24057544,32319.0,32318.0,4.4551]
[1625733625807,0.24057544,32319.0,32318.0,4.5551]
[1625733625949,0.24057544,32319.0,32318.0,4.56168438]
[1625733626549,0.24057544,32319.0,32318.0,5.04283526]
[1625733627151,0.5270141,32322.0,32318.0,5.04283526]
[1625733627301,0.5270141,32322.0,32319.0,0.0924]
[1625733627605,0.5270141,32322.0,32320.0,0.46674928]
[1625733628201,0.5270141,32322.0,32321.0,0.10364828]
[1625733628502,0.5270141,32322.0,32321.0,0.55993328]
[1625733628652,0.52777827,32323.0,32321.0,0.55993328]
[1625733628951,1.23149911,32324.0,32321.0,0.55993328]
[1625733629102,1.23149911,32324.0,32323.0,0.24057544]
[1625733629252,0.52785337,32324.0,32323.0,0.33287544]
[1625733629402,0.52785337,32324.0,32323.0,0.79799168]
[1625733629702,0.52785337,32324.0,32323.0,0.89799168]
[1625733630754,1.23161796,32325.0,32323.0,0.89799168]
[1625733631054,0.52780144,32325.0,32323.0,0.65741624]
[1625733631204,0.52780144,32325.0,32324.0,0.00364815]
[1625733631505,0.52780144,32325.0,32324.0,0.56211715]
[1625733631654,0.76837688,32325.0,32324.0,0.80269259]
[1625733631955,0.24057544,32326.0,32324.0,0.80269259]
[1625733632104,0.52859381,32327.0,32324.0,0.80269259]
[1625733632258,1.47496707,32330.0,32325.0,0.00364758]
[1625733632405,0.24057544,32330.0,32325.0,0.00364758]
[1625733632708,0.24057544,32330.0,32326.0,0.466006]
[1625733633006,0.23477544,32330.0,32326.0,0.466006]
[1625733633157,0.94602849,32333.0,32327.0,0.00364733]
[1625733633305,0.94602849,32333.0,32329.0,0.1]
[1625733633456,0.94602849,32333.0,32329.0,0.36927]
[1625733633457,0.24057544,32333.0,32329.0,0.36927]
[1625733633605,1.23587322,32336.0,32333.0,4.1167]
[1625733633756,0.70056167,32335.0,32333.0,4.1167]
[1625733633905,0.77021585,32336.0,32333.0,4.1167]
[1625733634054,0.49835557,32342.0,32335.0,0.1]
[1625733634505,1.23899845,32344.0,32336.0,0.4676401]
[1625733634655,1.23755344,32346.0,32336.0,0.6966601]
[1625733634805,1.23755344,32346.0,32341.0,0.1]
[1625733635105,1.23813562,32348.0,32342.0,0.006172]
[1625733635259,1.23813562,32348.0,32342.0,0.00981816]
[1625733635405,1.23813562,32348.0,32347.0,4.304]
[1625733635555,1.23943371,32349.0,32347.0,4.70562]
[1625733635856,1.23969539,32350.0,32347.0,5.169529]
[1625733636005,1.23969539,32350.0,32347.0,5.069529]
[1625733636157,1.23969539,32350.0,32349.0,0.48115088]
[1625733636306,1.48067289,32351.0,32349.0,0.58115088]
[1625733636455,1.48067289,32351.0,32349.0,1.04176188]